Cogmind - Beta 13 @@@ ROGUE MODE // 2024.05.16 @ 16:24:24 Player: CanadianCogs Result: Destroyed by G-34 Mercenary with Small Laser Performance ------------- Evolutions (0) 0 Regions Visited (2) 400 Robots Destroyed (14) 70 Value Destroyed (208) 208 Prototype IDs (0) 0 Alien Tech Used (0) 0 Bonus (0) 0 TOTAL SCORE: 678 Bonus ------- None Cogmind --------- Core Integrity 0/250 Matter 134/300 Energy 44/100 System Corruption 0% Temperature Cool (6) Movement Flying (120) Ox1 Location -10/Mines Parts ------- > --- POWER (1) -------- (None) > --- PROPULSION (2) --- Flight Unit > --- UTILITY (2) ------ Small Storage Unit Propulsion Shielding > --- WEAPON (2) ------- Mini Grenade Launcher Mini Grenade Launcher > --- INVENTORY (8) ---- Cooling System Cooling System ECM Suite Datajack Peak State ------------ > --- POWER ------------ Light Ion Engine > --- PROPULSION ------- Flight Unit Flight Unit > --- UTILITY ---------- Small Storage Unit Seismic Detector > --- WEAPON ----------- Mini Grenade Launcher Datajack > --- INVENTORY -------- Flight Unit Cooling System Cooling System ECM Suite Propulsion Shielding Light Cannon Mini Grenade Launcher [Rating: 9] Favorites ----------- Power Light Ion Engine Engine Light Ion Engine Propulsion Flight Unit Wheel Wheel Flight Unit Flight Unit Utility Small Storage Unit Device Seismic Detector Storage Small Storage Unit Protection Propulsion Shielding Weapon Datajack Energy Gun Medium Laser Ballistic Cannon Light Cannon Launcher Mini Grenade Launcher Special Melee Weapon Datajack Build | -11 -10 -10 ------- Run | Yrd Mat Min Slots Evolved . | . . . Power . | . . . Propulsion . | . . . Utility . | . . . Weapon . | . . . Parts Attached 27 | 7 5 15 Power 2 | 1 . 1 Engine 2 | 1 . 1 Core . | . . . Reactor . | . . . Propulsion 6 | 2 3 1 Treads . | . . . Leg . | . . . Wheel 3 | 2 1 . Hover . | . . . Flight 3 | . 2 1 Utility 8 | 2 1 5 Device 4 | 1 1 2 Storage 1 | 1 . . Processor . | . . . Hackware . | . . . Protection 3 | . . 3 Artifact . | . . . Weapon 11 | 2 1 8 Energy Gun 2 | 2 . . Energy Cannon . | . . . Ballistic Gun . | . . . Ballistic Cannon 3 | . . 3 Launcher 4 | . . 4 Special Weapon . | . . . Impact Weapon . | . . . Slashing Weapon . | . . . Piercing Weapon . | . . . Special Melee Weapon 2 | . 1 1 Unidentified Prototypes . | . . . Parts Lost 5 | . . 5 Power 1 | . . 1 Propulsion 2 | . . 2 Utility 1 | . . 1 Weapon 1 | . . 1 Highest Loss Streak 2 | . . 2 To Critical Strikes . | . . . Average Slot Usage (%) 86 | . 89 80 Engine 12 | . 14 8 Wheel 7 | . 10 . Flight 20 | . 17 27 Device 10 | . 13 5 Storage 14 | . 14 14 Protection 1 | . . 5 Energy Gun 7 | . 10 . Ballistic Cannon 1 | . . 4 Special Melee Weapon 9 | . 8 11 Naked Turns . | . . . Heaviest Build 13 | 13 13 10 Greatest Support 20 | 20 20 8 Greatest Overweight (x) 2 | . 2 1 Average Overweight (x) . | . . . Largest Inventory Capacity 8 | 8 8 8 Average Capacity 7 | 7 8 8 Most Carried 8 | 5 8 8 Average Carried 6 | 1 7 6 Final Capacity 8 | 8 8 8 Final Carried 8 | 2 8 4 Class Distribution -------------------- 100% | Mutant Dominant Class ---------------- Mutant | -10/Materials Mutant | -10/Mines Resources | -11 -10 -10 ----------- Run | Yrd Mat Min Matter Collected 397 | 223 67 107 Remotely . | . . . Salvage Created 176 | 19 94 63 Parts 22 | 3 8 11 Haulers Intercepted . | . . . Recyclers Shooed . | . . . Parts Field Recycled . | . . . Retrieved Matter . | . . . Parts Self-Destructed . | . . . Prevented . | . . . Kills | -11 -10 -10 ------- Run | Yrd Mat Min Combat Hostiles Destroyed 13 | . 6 7 Guns 6 | . 6 . Cannons 2 | . . 2 AOE 5 | . . 5 Classes Destroyed 3 | 1 1 1 Tunneler 1 | 1 . . Swarmer 11 | . 6 5 Grunt 2 | . . 2 Best Kill Streak 3 | 1 3 3 Combat Bots Only 3 | . 3 3 Max Kills in Single Turn 3 | 1 2 3 Gunslinging 1 | . 1 . Exploded 3 | . . 3 Melee . | . . . Uniques/NPCs Destroyed . | . . . Combat | -11 -10 -10 -------- Run | Yrd Mat Min Hostile Shots Fired 95 | . 46 49 Missed 21 | . 10 11 Damage Taken 768 | . 294 474 Core 254 | . 67 187 Absorbed by Shields . | . . . Redirected to Shielding 20 | . . 20 Regen/Repaired (Parts) 5 | . 5 . Core Remaining (%) 100 | 100 . . Volleys Fired 41 | 1 15 25 Largest 2 | 2 2 1 Hottest 100 | 100 100 35 Shots Fired 56 | 2 29 25 Gun 31 | 2 29 . Cannon 22 | . . 22 Launcher 3 | . . 3 Special . | . . . Kinetic 22 | . . 22 Thermal 31 | 2 29 . Explosive 3 | . . 3 Electromagnetic . | . . . Robot Hit Streak 10 | 1 4 10 Robot Miss Streak 4 | . 4 3 Penetration Max . | . . . Secondary Targets 2 | . 2 . Max Gunslinging Chain 1 | . 1 . Shots Hit Robots 42 | 1 21 20 Core Hits 15 | 1 6 8 Critical Kills . | . . . Critical Parts Destroyed . | . . . Critical Strikes 3 | . 2 1 Burn 2 | . 2 . Blast 1 | . . 1 Melee Attacks 12 | . 9 3 Impact . | . . . Slashing . | . . . Piercing . | . . . Sneak Attacks 9 | . 9 . Combat Hostiles . | . . . Follow-up Attacks . | . . . Damage Inflicted 833 | 12 188 633 Guns 200 | 12 188 . Cannons 267 | . . 267 Explosions 366 | . . 366 Melee . | . . . Ramming . | . . . Kinetic 267 | . . 267 Thermal 200 | 12 188 . Explosive 366 | . . 366 Electromagnetic . | . . . Impact . | . . . Slashing . | . . . Piercing . | . . . Highest Corruption . | . . . Average Corruption . | . . . Corruption Purged . | . . . Corruption Blocked . | . . . Overload Shots . | . . . Overflow Damage 25 | . . 25 Projectiles . | . . . Explosions 25 | . . 25 Melee . | . . . Knockbacks 5 | . . 5 Impact . | . . . Kinetic 5 | . . 5 Secondary . | . . . Self-Inflicted Damage 33 | . . 33 Shots 1 | . . 1 Rammed . | . . . Targets Rammed . | . . . Kicked . | . . . Crushed . | . . . Highest Temperature 234 | 39 234 20 Average Temperature 80 | 24 104 10 Received Heat Transfer 234 | . 6 228 Effects 2 | . 2 . Interference 2 | . 2 . Siege Activations . | . . . Robots Corrupted . | . . . Combat Hostiles . | . . . Parts Fried . | . . . Impact Corruptions . | . . . Robots Melted . | . . . Combat Hostiles . | . . . Parts Melted 4 | . 4 . Heat Transferred 740 | 37 703 . Parts Sabotaged . | . . . Parts Stolen . | . . . Parts Stripped . | . . . Power Chain Reactions . | . . . Alert | -11 -10 -10 ------- Run | Yrd Mat Min Peak Influence 350 | 5 248 350 Initial 30 | . 3 30 Average 139 | 1 132 184 Maximum Alert Level 1 | . 1 1 Low Security (%) 69 | 100 65 72 Level 1 30 | . 34 27 Level 2 . | . . . Level 3 . | . . . Level 4 . | . . . Level 5 . | . . . High Security . | . . . Max Security . | . . . Squads Dispatched 4 | . 4 . Investigation 1 | . 1 . Extermination . | . . . Reinforcement 3 | . 3 . Assault . | . . . Garrison . | . . . Intercept . | . . . Searches Triggered . | . . . Construction Impeded . | . . . Haulers Reinforced . | . . . Active Scanning Responses . | . . . Cargo Convoy Interrupts . | . . . Stealth | -11 -10 -10 --------- Run | Yrd Mat Min Distress Signals 2 | . 2 . Communications Jammed . | . . . Distress Signals . | . . . Times Spotted 31 | . 16 15 Peak Tracking Total 4 | . 3 4 Tactical Retreats 8 | . 4 4 Traps | -11 -10 -10 ------- Run | Yrd Mat Min Traps Triggered . | . . . Indirectly . | . . . Trap Hack Attempts . | . . . Triggered . | . . . Disarmed . | . . . Reprogrammed . | . . . Reused . | . . . Traps Extracted . | . . . Installed . | . . . Triggered . | . . . Machines | -11 -10 -10 ---------- Run | Yrd Mat Min Machines Disabled 1 | . . 1 Max in Single Turn 1 | . . 1 Machines Repaired . | . . . Machines Dismantled . | . . . Machines Sabotaged . | . . . Overloaded Fab Kills . | . . . Hacking | -11 -10 -10 --------- Run | Yrd Mat Min Machines Accessed 3 | . 3 . Terminals . | . . . Fabricators . | . . . Repair Stations 1 | . 1 . Recycling Units 2 | . 2 . Scanalyzers . | . . . Garrison Access . | . . . Total Hacks 7 | . 7 . Successful 4 | . 4 . Failed 3 | . 3 . Catastrophic 1 | . 1 . Database Lockouts . | . . . Manual 1 | . 1 . Terminals . | . . . Fabricators . | . . . Repair Stations 3 | . 3 . Recycling Units 4 | . 4 . Scanalyzers . | . . . Garrison Access . | . . . Terminal Hacks . | . . . Fabricator Hacks . | . . . Repair Station Hacks 2 | . 2 . Scan Component 1 | . 1 . Repair 1 | . 1 . Recycling Unit Hacks 1 | . 1 . Report Inventory 1 | . 1 . Scanalyzer . | . . . Garrison Access Hacks . | . . . Unauthorized Hacks 1 | . 1 . Terminals . | . . . Fabricators . | . . . Repair Stations . | . . . Recycling Units 1 | . 1 . Tunnel 1 | . 1 . Scanalyzers . | . . . Garrison Access . | . . . Data Cores Recovered . | . . . Used . | . . . Hacking Detections 2 | . 2 . Full Trace Events 1 | . 1 . Feedback Events . | . . . Feedback Blocked . | . . . Robot Schematics Acquired . | . . . Robots Built . | . . . Authchips . | . . . Time . | . . . Total Robot Build Rating . | . . . Part Schematics Acquired . | . . . Parts Built . | . . . Authchips . | . . . Time . | . . . Total Part Build Rating . | . . . Parts Repaired 1 | . 1 . Time 26 | . 26 . Parts Recycled . | . . . Recycled Matter . | . . . Retrieved Matter . | . . . Retrieved Components . | . . . Parts Scanalyzed . | . . . Part Schematics Acquired . | . . . Parts Damaged . | . . . Bothacking | -11 -10 -10 ------------ Run | Yrd Mat Min Used RIF Installer . | . . . Robots Hacked 6 | . 4 2 Non-combat 4 | . 4 . Combat 2 | . . 2 Robot Hacks Applied 10 | . 8 2 parse_system 6 | . 4 2 no_distress 3 | . 3 . find_recycling 1 | . 1 . Relay Couplers Released . | . . . Fabnet Peak Effective % . | . . . Robots Rewired . | . . . Allies Hacked . | . . . Hacks Repelled . | . . . Allies | -11 -10 -10 -------- Run | Yrd Mat Min Total Allies . | . . . Largest Group . | . . . Highest-Rated Group . | . . . Highest-Rated Ally . | . . . Total Orders . | . . . Ally Attacks . | . . . Total Damage . | . . . Kills . | . . . Allies Corrupted . | . . . Allies Melted . | . . . Intel | -11 -10 -10 ------- Run | Yrd Mat Min Robot Analysis Total . | . . . Derelict Logs Recovered 1 | . . 1 Drone Launches . | . . . Drone Recoveries . | . . . Exploration | -11 -10 -10 ------------- Run | Yrd Mat Min Turns Passed 879 | 58 561 260 Spaces Moved 620 | 37 349 234 Core 20 | 20 . . Treads . | . . . Legs . | . . . Wheels 160 | 17 143 . Hover . | . . . Flight 440 | . 206 234 Fastest Speed 37 | 50 80 37 Average Speed 90 | 63 102 77 Slowest Speed 200 | 80 200 120 Overloaded Moves . | . . . Propulsion Burnouts . | . . . Robots Hopped . | . . . Cave-ins Triggered . | . . . Exploration Rate (%) 36 | 3 49 58 Regions Visited 2 Branch Regions 1 Pre-discovered Areas 1 | . 1 . Known Exits Taken . | . . . Unknown Exits Taken 2 | 1 1 . Scrap Searched 1 | . . 1 Spaces Dug . | . . . Terrain Destroyed 31 | . . 31 Melee . | . . . Projectile . | . . . AOE 31 | . . 31 Terrain Rammed . | . . . Walls Destroyed . | . . . Machines Disabled . | . . . Actions | -11 -10 -10 --------- Run | Yrd Mat Min Total 879 | 68 522 289 Wait 146 | 16 125 5 Move 618 | 36 348 234 Hop . | . . . Pick Up 20 | 8 12 . Fast Attach 3 | 1 2 . Attach 17 | 6 2 9 Detach 5 | . . 5 Swap 7 | . 1 6 Drop 10 | . 8 2 Fire 41 | 1 15 25 Melee 12 | . 9 3 Ram . | . . . Kick . | . . . Crush . | . . . Escape Stasis . | . . . Rewire . | . . . Trap . | . . . Miscellaneous . | . . . Route ------- -11/Scrapyard -10/Materials (discovered 2 exits: [*Mat] / [*Min]) -10/Mines History --------- Turn | Location | Event 9 | -11/Scrapyard | Discovered new exit (range 15) 59 | -11/Scrapyard | Entered Materials 90 | -10/Materials | Repaired Seismic Detector 306 | -10/Materials | Build established: Mutant 341 | -10/Materials | Discovered new exit (range 3) 576 | -10/Materials | Discovered new exit (range 6) 620 | -10/Materials | Entered Mines 706 | -10/Mines | Core integrity fell below 50% 738 | -10/Mines | Learned 8 Materials zone layouts 807 | -10/Mines | Core integrity fell below 20% 880 | -10/Mines | Destroyed by G-34 Mercenary with Small Laser Last Messages --------------- 00834_ Searching scrap... 00834_ Found 25 Matter. 00834_ Found Lgt. Treads. 00834_ Found Med. Laser. 00834_ Found 29 Matter. 00839_ A derelict is hurriedly installing traps. 00839_ K-01 Serf collects debris. 00841_ 2H-EUI(g): "Hehe, this'll put a wrench in their mining defense operations..." 00841_ 2H-EUI(g) slips into the shadows. 00842_ K-01 Serf collects debris. 00865_ S-10 Pest destroyed. 00865_ Destroyed Flight Unit. 00866_ S-10 Pest destroyed. 00870_ Flight Unit destroyed. 00872_ Jacked G-47 Trooper... >>parse_system Reading system data... 00874_ G-47 Trooper knocked back. 00878_ Lgt. Cannon destroyed. Map ----- +----------------------------------------------------+ | | | | | | | | | | | | | | | | | | | | | | | ?????????????????????????????????????????????????? | | ?????????????????????????????????????????????????? | | ?????????????????????????????????????????????????? | | ?????????????????????????????????????????????????? | | ?????????????????????????????????????????????????? | | ???????########??????????????????????????????????? | | ??????## #??????????????????????????????????? | | ??????# #??????????????????????????????????? | | ??????# [= #??####???????????###??????????????? | | ??????# [ #?## ##??????????# ##?????????????? | | ??????# = * #?# #?????????? #?????????????? | | ??????# = ##### #??######### ##????????????? | | ??????#### #?## ! #???# #????????????? | | ?????????# #?# #???# ### #????????????? | | ?????????# #### ! ##???#@#?# ##????????????? | | ?????????# #??### #?## ##?????????????? | | ?????????##### #### g##?# ###??????????????? | | ?????????????## ## g #?# ????????????????? | | ??????????????#### % #?# ???????????????? | | ?????????????????## #### ??????#####???? | | ??????????????????### #####?# * #????## ##??? | | ???????????????###### #?????# #?#### #### | | ???????????????# #?????# #?# | | ???????????????# #### #?????# #### ## | | ???????????????# #??# #????## ## ## | | ???????????????# #??# ###### # ## | | ??????????????## ##?# | | ?????????????## ### ###### ## | | ??????######## ####### ####????### ### | | ??????# #????## ##?????????## #?# | | ?????# ##????## ????????????# #?# | | ?????# ##????# ????????????# #?# | | ????# ## #????## #????????????# #?# | | ????# ??## ## ######## #????????????# #?# | | ????## ????####?## !## #????????????# #?# | | ?????##???????????# ##### ## #????????????# #?# | | ??????????????????# #???# ## ######???????# #?# | | ??????????????????# ???# ##??????# ### | | ?????????????????# #??# ##?????# ## | +----------------------------------------------------+ Best States ------------- Heat Dissipation 25 Energy Generation 10 Energy Capacity 125 Matter Stores 300 Matter Capacity 300 Sight Range 16 Terrain Scan Density 10 Propulsion Shielding 33 Evasion (%) 62 Item Schematics ----------------- None Robot Schematics ------------------ None Fabricated ------------ Nothing Alien Tech Used ----------------- None Achievements -------------- None Challenges ------------ None Game ------ Seed HardlightCatalystBuckler Manual? 1 Play Time 00:15:52 Cumulative 28.6 hours Start 2024.05.16 @ 16:05:56 End 2024.05.16 @ 16:24:24 Sessions 1 Manual Loads 0 Difficulty Rogue Special Mode None Game No. 48 Rogue 48 Adventurer 0 Explorer 0 Win Type - Total 0 Types 0/0/0/0/0/0/0/0/0 Lore% 19 Gallery% 27 Achievement% 24 Wizard Run 0 Options --------- Layout 0 ASCII 0 Keyboard 0 Movement Mouse Keybinds 0 Fullscreen 2 Font 18/SmallcapsGlow Map View 38x25 Zoom Use 99% Tactical HUD 1 Map Filters NONE Filters NONE Steam 1 RUN: 65bbc451-beca-4933-bde9-0277c9b5aead